bitfinex/quotes_SOLUSD_20220114
["timestamp","ask_amount","ask_price","bid_price","bid_amount"]
[1642180275973,6.25,147.34,147.27,9.86]
[1642180276374,10.1847,147.32,147.24,9.86]
[1642180276575,16.4347,147.32,147.24,9.86]
[1642180276776,16.4347,147.32,147.24,10.11]
[1642180277780,16.4347,147.32,147.24,9.86]
[1642180279100,37.4135,147.34,147.24,11.54023959]
[1642180279302,34.6985,147.34,147.24,11.79023959]
[1642180279500,40.6985,147.34,147.24,11.79023959]
[1642180280301,40.6985,147.34,147.24,89.56503959]
[1642180281104,30.5147,147.34,147.24,89.56503959]
[1642180281302,30.5147,147.34,147.24,95.82503959]
[1642180282306,30.5147,147.34,147.24,89.82503959]
[1642180282508,30.5147,147.34,147.24,95.82503959]
[1642180283805,30.5147,147.34,147.24,89.82503959]
[1642180284004,30.5147,147.34,147.24,95.82503959]
[1642180287010,24.5147,147.34,147.24,95.82503959]
[1642180288410,30.5147,147.34,147.24,95.82503959]
[1642180289514,30.5147,147.34,147.24,27.97503959]
[1642180289713,2.715,147.33,147.24,20.2948]
[1642180290114,8.965,147.33,147.24,10.11]
[1642180291118,19.1491,147.33,147.24,9.86]
[1642180291316,25.9991,147.33,147.24,9.86]
[1642180291520,25.9991,147.33,147.2,13.46617695]
[1642180291718,23.0484,147.32,147.2,13.46617695]
[1642180291918,2.716,147.31,147.2,13.46617695]
[1642180292117,2.716,147.31,147.21,30.00535466]
[1642180292317,8.966,147.31,147.21,30.00535466]
[1642180292519,8.966,147.31,147.21,30.25535466]
[1642180292817,10.188,147.28,147.21,30.00535466]
[1642180293017,2.716,147.27,147.21,30.00535466]
[1642180293218,16.438,147.28,147.21,30.25535466]
[1642180294118,16.438,147.28,147.21,30.00535466]
[1642180294419,12.9041,147.27,147.21,0.25]
[1642180294619,10.1881,147.27,147.18,13.46617695]
[1642180294819,2.716,147.26,147.18,13.46617695]
[1642180295017,8.966,147.26,147.18,13.46617695]
[1642180296224,10.1909,147.23,147.16,31.82554382]
[1642180296423,10.1909,147.23,147.16,32.07554382]
[1642180296627,16.4409,147.23,147.16,32.07554382]
[1642180297023,16.4409,147.23,147.16,31.82554382]
[1642180297251,2.717,147.22,147.16,31.82554382]
[1642180297452,10.1923,147.21,147.16,31.82554382]
[1642180297857,6.25,147.21,147.16,31.82554382]
[1642180299257,0.25,147.21,147.16,31.82554382]
[1642180299455,31.9174,147.24,147.16,31.82554382]
[1642180299456,10.1917,147.22,147.16,31.82554382]
[1642180299856,16.4417,147.22,147.16,31.82554382]
[1642180301257,16.1917,147.22,147.16,32.07554382]
[1642180301459,16.1917,147.22,147.16,0.25]
[1642180302057,16.1917,147.22,147.15,13.46617695]
[1642180302459,16.4417,147.22,147.15,13.46617695]
[1642180303063,19.1587,147.22,147.15,13.46617695]
[1642180303260,19.1587,147.22,147.15,9.86]
[1642180304362,16.4417,147.22,147.15,9.86]
[1642180304860,16.4417,147.22,147.15,9.36]
[1642180305461,2.717,147.21,147.15,9.36]
[1642180305665,12.9096,147.21,147.15,9.36]
[1642180305961,16.4426,147.21,147.15,9.36]
[1642180306164,2.717,147.2,147.15,9.36]
[1642180306564,8.967,147.2,147.15,9.36]
[1642180306767,10.1939,147.19,147.15,9.36]
[1642180306968,19.1609,147.19,147.13,3.60617695]
[1642180307167,16.4439,147.19,147.13,3.60617695]
[1642180307767,16.4439,147.19,147.11,23.65947695]
[1642180307969,16.4439,147.19,147.12,23.34355418]
[1642180308568,16.4439,147.19,147.11,23.90947695]
[1642180309670,16.4439,147.19,147.12,3.87577898]
[1642180310268,2.718,147.18,147.12,3.87577898]
[1642180310567,10.1962,147.16,147.12,3.87577898]
[1642180311067,16.4462,147.16,147.12,3.87577898]
[1642180311968,16.4462,147.16,147.1,3.60617695]
[1642180312370,16.4462,147.16,147.1,3.85617695]
[1642180312771,16.4462,147.16,147.1,0.25]
[1642180312969,16.4462,147.16,147.09,7.48195593]
[1642180314471,10.1987,147.12,147.09,7.48195593]
[1642180314673,2.719,147.11,147.09,7.48195593]
[1642180315072,8.969,147.11,147.09,7.48195593]
[1642180315273,6.25,147.11,147.09,7.48195593]
[1642180315472,0.25,147.11,147.09,7.48195593]
[1642180315674,6.25,147.11,147.09,7.48195593]
[1642180315906,10.1999,147.1,147.05,3.60617695]
[1642180316273,16.4499,147.1,147.05,3.60617695]
[1642180316976,16.4499,147.1,147.04,3.60617695]
[1642180317186,19.1689,147.1,147.04,3.60617695]
[1642180317779,16.4499,147.1,147.04,3.60617695]
[1642180318277,16.4499,147.1,147.02,3.60617695]
[1642180320778,16.4499,147.1,147.02,14.05617695]
[1642180320779,6.0,147.1,147.02,14.05617695]
[1642180320988,6.0,147.12,147.03,3.60617695]
[1642180321381,24.7321,147.15,147.04,1.67395971]
[1642180321581,2.719,147.14,147.05,24.01496011]
[1642180321780,33.4511,147.15,147.05,24.01496011]
[1642180322080,33.7011,147.15,147.05,27.87113706]
[1642180322280,43.8978,147.15,147.05,38.06873706]
[1642180322682,43.8978,147.15,147.05,14.05377695]
[1642180322882,43.8978,147.15,147.05,3.85617695]
[1642180323285,43.8978,147.15,147.06,7.48195593]
[1642180324109,43.8978,147.15,147.06,3.60617695]
[1642180324310,43.8978,147.15,147.04,7.48195593]
[1642180324510,43.8978,147.15,147.04,7.73195593]
[1642180324711,43.8978,147.15,147.04,7.48195593]
[1642180324910,43.8978,147.15,147.05,10.198]
[1642180325311,43.8978,147.15,147.05,13.80417695]
[1642180325713,33.7011,147.15,147.05,13.80417695]
[1642180325911,30.9821,147.15,147.05,13.80417695]
[1642180326116,2.719,147.14,147.05,13.80417695]
[1642180326314,2.719,147.14,147.07,10.196]
[1642180326511,8.969,147.14,147.07,10.196]
[1642180328213,8.969,147.14,147.05,13.80367695]
[1642180328414,8.969,147.14,147.05,14.05367695]
[1642180328618,19.1665,147.14,147.05,13.80367695]
[1642180328914,19.1665,147.14,147.06,3.87755303]
[1642180329916,19.1665,147.14,147.04,3.60617695]
[1642180330916,19.1665,147.14,147.04,7.48372998]
[1642180331618,25.3695,147.14,147.04,7.48372998]
[1642180333222,19.1665,147.14,147.04,7.48372998]
[1642180333922,19.1665,147.14,147.03,7.48372998]
[1642180334324,19.1665,147.14,147.03,7.73372998]
[1642180335124,19.1665,147.14,147.03,7.48372998]
[1642180335325,24.6565,147.14,147.03,7.48372998]
[1642180335527,34.5165,147.14,147.03,7.48372998]
[1642180337026,34.5165,147.14,147.01,7.48372998]
[1642180337227,67.59,147.13,147.01,7.48372998]
[1642180337426,10.2024,147.07,147.01,7.48372998]
[1642180337925,16.4524,147.07,147.01,7.48372998]
[1642180339229,16.4524,147.07,147.01,3.60617695]
[1642180339426,6.0,147.07,147.01,3.85617695]
[1642180339727,30.6907,147.1,147.01,3.85617695]
[1642180339929,30.9407,147.1,147.01,3.85617695]
[1642180340226,30.9407,147.1,147.02,3.60617695]
[1642180340427,30.9407,147.1,147.03,10.1994]
[1642180340627,6.25,147.1,147.03,10.1994]
[1642180340828,6.25,147.1,147.03,10.4494]
[1642180341228,0.25,147.1,147.03,10.4494]
[1642180341531,30.8605,147.12,147.03,23.91557695]
[1642180342529,30.8605,147.12,147.04,3.87755303]
[1642180342830,30.8605,147.12,147.06,10.1971]
[1642180343029,30.6105,147.12,147.06,10.1971]
[1642180343227,30.6105,147.12,147.04,3.87755303]
[1642180343427,30.6105,147.12,147.04,4.12755303]
[1642180343629,30.6105,147.12,147.04,7.73372998]
[1642180343928,30.6105,147.12,147.04,17.93192998]
[1642180344429,30.8605,147.12,147.04,17.93192998]
[1642180344730,33.5795,147.12,147.04,17.68192998]
[1642180345129,43.7783,147.12,147.04,17.68192998]
[1642180345330,41.0593,147.12,147.04,17.68192998]
[1642180345529,41.0593,147.12,147.04,10.1982]
[1642180345729,41.0593,147.12,147.04,10.4482]
[1642180346130,30.8605,147.12,147.04,10.4482]
[1642180346331,6.25,147.12,147.06,12.13603254]
[1642180346529,0.25,147.12,147.06,12.13603254]
[1642180346732,6.25,147.12,147.06,12.13603254]
[1642180347229,6.25,147.12,147.07,1.93883254]
[1642180347429,0.25,147.12,147.07,1.93883254]
[1642180347629,2.969,147.13,147.07,1.93883254]
[1642180347833,8.969,147.13,147.07,1.93883254]
[1642180348632,19.1671,147.13,147.07,1.93883254]
[1642180349834,6.25,147.13,147.06,1.93883254]
[1642180350034,29.6033,147.14,147.06,2.18883254]
[1642180350235,32.3223,147.14,147.06,2.18883254]
[1642180350835,32.3223,147.14,147.07,1.93883254]
[1642180351038,32.3223,147.14,147.07,12.13523254]
[1642180352435,29.6033,147.14,147.07,12.13523254]
[1642180352636,6.0,147.14,147.08,29.69787988]
[1642180352837,6.0,147.14,147.08,39.89367988]
[1642180353037,6.0,147.15,147.08,40.14367988]
[1642180353536,3.50607903,147.18,147.09,1.93883254]
[1642180353537,7.70077588,147.18,147.09,1.93883254]
[1642180353736,7.70077588,147.18,147.11,10.1935]
[1642180353937,10.41877588,147.18,147.11,10.1935]
[1642180354137,7.70077588,147.18,147.11,10.1935]
[1642180354336,7.70077588,147.18,147.11,10.4435]
[1642180354638,10.41877588,147.18,147.11,10.1935]
[1642180354836,7.70077588,147.18,147.11,10.1935]
[1642180355042,7.70077588,147.18,147.11,10.4435]
[1642180355836,7.95077588,147.18,147.11,10.4435]
[1642180356238,7.95077588,147.18,147.11,12.38233254]
[1642180356437,1.70077588,147.18,147.11,12.38233254]
[1642180356637,1.70077588,147.18,147.11,22.24233254]
[1642180356836,1.70077588,147.18,147.11,28.50233254]
[1642180357638,1.70077588,147.18,147.13,1.93883254]
[1642180357838,1.70077588,147.18,147.14,10.1917]
[1642180358041,1.70077588,147.18,147.14,10.4417]
[1642180358742,1.70077588,147.18,147.14,12.38053254]
[1642180359338,1.70077588,147.18,147.14,35.63928052]
[1642180359942,1.70077588,147.18,147.14,109.22928052]
[1642180360143,1.70077588,147.18,147.14,103.22928052]
[1642180360541,1.70077588,147.18,147.15,11.79883254]
[1642180360745,1.70077588,147.18,147.16,16.25399993]
[1642180360943,1.70077588,147.18,147.16,16.50399993]
[1642180361742,0.00077588,147.18,147.16,16.50399993]
[1642180361945,0.00077588,147.18,147.17,9.86]
[1642180362347,0.00077588,147.18,147.17,10.11]
[1642180362543,0.00077588,147.18,147.17,77.7]
[1642180362743,0.00077588,147.18,147.17,79.63883254]
[1642180363444,0.00077588,147.18,147.17,113.59563254]
[1642180364048,0.00077588,147.18,147.17,111.6568]
[1642180365046,0.00077588,147.18,147.17,44.0668]
[1642180365244,0.00077588,147.18,147.17,10.11]
[1642180366249,0.00077588,147.18,147.17,12.04738521]
[1642180368653,0.00077588,147.18,147.17,11.79738521]
[1642180369857,0.00077588,147.18,147.17,79.38738521]
[1642180370054,0.00077588,147.18,147.17,79.63738521]
[1642180370862,0.00077588,147.18,147.17,113.59388521]
[1642180371061,0.00077588,147.18,147.17,117.6565]
[1642180371861,2.717,147.26,147.21,10.1853]
[1642180372062,2.717,147.26,147.22,27.5995228]
[1642180372276,1.80530315,147.28,147.22,95.1895228]
[1642180372479,2.716,147.27,147.22,95.4395228]
[1642180372678,1.80530315,147.28,147.23,9.86]
[1642180372878,1.80530315,147.3,147.23,9.86]
[1642180373078,1.80530315,147.3,147.23,16.37]
[1642180373480,1.80530315,147.3,147.24,67.59]
[1642180373679,1.80530315,147.3,147.25,9.86]
[1642180373880,1.80530315,147.3,147.26,67.59]
[1642180374082,4.52130315,147.33,147.28,10.1812]
[1642180374281,1.80530315,147.33,147.28,10.1812]
[1642180374482,2.715,147.32,147.28,10.4312]
[1642180375782,1.80530315,147.34,147.28,10.4312]
[1642180375982,1.80530315,147.34,147.29,67.59]
[1642180376182,1.80530315,147.34,147.31,10.1798]
[1642180376383,2.715,147.33,147.29,0.25]
[1642180376987,1.80530315,147.34,147.29,0.25]
[1642180377587,1.80530315,147.34,147.27,38.27171706]
[1642180378384,1.80530315,147.34,147.29,10.1808]
[1642180378585,1.80530315,147.34,147.29,10.4308]
[1642180380693,1.80530315,147.34,147.29,20.2908]
[1642180381496,1.80530315,147.34,147.29,27.0858]
[1642180381694,1.80530315,147.35,147.29,27.0858]
[1642180382294,1.80530315,147.35,147.29,27.3458]
[1642180382495,1.80530315,147.35,147.29,33.3458]
[1642180382896,1.80530315,147.37,147.29,33.3458]
[1642180383097,2.05530315,147.37,147.29,33.3458]
[1642180383296,2.05530315,147.37,147.29,26.5508]
[1642180383495,2.05530315,147.37,147.29,26.2908]
[1642180383696,2.05530315,147.37,147.29,20.2908]
[1642180383896,8.05530315,147.37,147.29,20.2908]
[1642180384095,2.05530315,147.37,147.29,20.2908]
[1642180384296,2.714,147.36,147.29,20.2908]
[1642180384595,8.964,147.36,147.29,20.2908]
[1642180384796,1.80530315,147.35,147.29,9.86]
[1642180384996,2.715,147.34,147.26,1.9368841]
[1642180385199,10.1844,147.33,147.26,1.9368841]
[1642180385398,2.715,147.32,147.26,1.9368841]
[1642180385797,42.9227,147.32,147.26,1.9368841]
[1642180385999,42.9227,147.32,147.23,3.60617695]
[1642180386000,43.0,147.31,147.23,3.60617695]
[1642180386201,45.716,147.31,147.23,3.60617695]
[1642180386403,51.966,147.31,147.21,9.86]
[1642180386603,75.371,147.31,147.21,9.86]
[1642180386801,32.371,147.31,147.21,9.86]
[1642180387000,42.5569,147.31,147.21,20.0469]
[1642180387401,29.655,147.31,147.21,20.0469]
[1642180387602,29.655,147.31,147.21,21.73889488]
[1642180388103,29.655,147.31,147.21,21.98889488]
[1642180389405,12.9021,147.3,147.21,20.2969]
[1642180389807,19.1521,147.3,147.21,20.2969]
[1642180390936,19.1521,147.3,147.21,10.11]
[1642180391136,19.1521,147.3,147.21,0.25]
[1642180391337,24.8528,147.29,147.21,0.25]
[1642180391540,10.1889,147.26,147.18,10.11]
[1642180391939,16.4389,147.26,147.18,32.6400887]
[1642180392341,16.4389,147.26,147.18,42.5789887]
[1642180393541,16.4389,147.26,147.18,42.8289887]
[1642180395944,6.25,147.26,147.18,42.8289887]
[1642180396145,0.25,147.26,147.18,110.4189887]
[1642180396544,8.966,147.28,147.18,110.4189887]
[1642180396746,8.966,147.28,147.18,112.11098358]
[1642180396948,6.0,147.28,147.18,118.37098358]
[1642180397344,24.8528,147.29,147.18,118.37098358]
[1642180397544,24.8528,147.29,147.18,118.11098358]
[1642180397946,30.8528,147.29,147.19,3.87352506]
[1642180398147,24.8528,147.29,147.24,10.1839]
[1642180398347,24.8528,147.29,147.25,30.89762725]
[1642180398648,24.8528,147.29,147.25,31.14762725]
[1642180399048,2.716,147.32,147.25,31.14762725]
[1642180399248,2.716,147.32,147.25,0.25]
[1642180399449,2.966,147.32,147.25,0.25]
[1642180399646,8.966,147.32,147.24,10.1843]
[1642180399847,8.966,147.32,147.24,10.4343]
[1642180400049,19.1508,147.32,147.24,10.4343]
[1642180401650,8.966,147.32,147.24,10.4343]
[1642180402250,8.716,147.32,147.24,10.4343]
[1642180403155,18.9009,147.32,147.24,10.1843]
[1642180403354,18.9009,147.32,147.22,20.0457]
[1642180403552,19.1509,147.32,147.22,20.2957]
[1642180406957,19.1509,147.32,147.22,20.0457]
[1642180407155,19.1509,147.32,147.19,33.9523]
[1642180407156,19.1509,147.32,147.18,9.86]
[1642180407356,23.4073,147.31,147.18,9.86]
[1642180407557,10.1893,147.26,147.18,9.86]
[1642180407857,2.717,147.25,147.18,9.86]
[1642180408055,8.967,147.25,147.18,9.86]
[1642180408458,8.967,147.25,147.18,20.0485]
[1642180408855,19.1567,147.25,147.18,9.86]
[1642180409358,16.4397,147.25,147.18,9.86]
[1642180409555,16.4397,147.25,147.18,10.11]
[1642180412385,16.4397,147.25,147.18,20.299]
[1642180412787,6.25,147.25,147.18,20.299]
[1642180412987,0.25,147.25,147.18,20.299]
[1642180413187,6.0,147.25,147.19,67.59]
[1642180413386,6.0,147.25,147.21,30.86917914]
[1642180413590,6.0,147.25,147.21,31.11917914]
[1642180413789,3.87260241,147.3,147.21,31.11917914]
[1642180413987,2.716,147.29,147.22,10.1858]
[1642180414388,8.966,147.29,147.22,10.1858]
[1642180416396,19.1529,147.29,147.22,10.1858]
[1642180416593,16.4369,147.29,147.2,21.73919488]
[1642180416794,2.716,147.28,147.2,21.98919488]
[1642180416993,8.966,147.28,147.2,20.0472]
[1642180417896,19.1538,147.28,147.2,9.86]
[1642180418096,16.4378,147.28,147.2,10.11]
[1642180418695,19.1538,147.28,147.2,10.11]
[1642180419696,6.25,147.28,147.2,10.11]
[1642180419896,6.0,147.28,147.2,10.11]
[1642180420096,29.2102,147.29,147.2,10.11]
[1642180420296,32.1762,147.29,147.2,10.11]
[1642180420497,29.4602,147.29,147.2,10.11]
[1642180420798,32.1762,147.29,147.2,10.11]
[1642180421298,32.1762,147.29,147.2,20.2975]
[1642180422198,29.4602,147.29,147.2,20.2975]
[1642180422801,29.4602,147.29,147.2,87.8875]
[1642180423699,29.4602,147.29,147.2,20.2975]
[1642180423899,2.716,147.28,147.2,20.2975]
[1642180424102,8.966,147.28,147.2,20.2975]
[1642180424305,8.966,147.28,147.2,9.86]
[1642180425505,19.1534,147.28,147.2,20.2975]
[1642180428307,19.1534,147.28,147.2,20.0475]
[1642180428508,19.1534,147.28,147.2,9.86]
[1642180429809,19.1534,147.28,147.2,10.11]
[1642180432211,19.1534,147.28,147.17,43.5525]
[1642180432411,23.8653,147.27,147.17,9.86]
[1642180432613,10.191,147.23,147.17,9.86]
[1642180433011,16.441,147.23,147.17,9.86]
[1642180434520,16.441,147.23,147.17,10.11]
[1642180435217,10.441,147.23,147.17,36.35331901]
[1642180435718,10.441,147.23,147.17,10.11]
[1642180436520,16.441,147.23,147.17,10.11]
[1642180437122,6.25,147.23,147.17,10.11]
[1642180438323,0.25,147.23,147.17,20.2997]
[1642180438519,6.0,147.23,147.17,20.2997]
[1642180438922,6.25,147.23,147.17,20.2997]
[1642180439121,0.25,147.23,147.17,20.2997]
[1642180439326,6.25,147.23,147.17,20.2997]
[1642180440422,6.0,147.23,147.17,21.99169488]
[1642180440622,6.0,147.24,147.17,21.99169488]
[1642180440824,32.8248,147.28,147.17,21.99169488]
[1642180441222,32.8248,147.28,147.18,67.59]
[1642180441422,32.8248,147.28,147.22,10.186]
[1642180441824,33.0748,147.28,147.22,10.186]
[1642180443561,27.0748,147.28,147.22,10.186]
[1642180443959,27.0748,147.28,147.22,10.436]
[1642180443960,24.3578,147.28,147.22,10.436]
[1642180444163,24.3578,147.28,147.22,10.186]
[1642180444359,27.0738,147.28,147.22,10.186]
[1642180444759,24.3578,147.28,147.2,10.1871]
[1642180444959,2.716,147.27,147.2,20.2971]
[1642180445361,8.966,147.27,147.2,20.2971]
[1642180446262,19.1543,147.27,147.2,10.11]
[1642180447963,19.1543,147.27,147.2,9.86]
[1642180448164,19.1543,147.27,147.16,9.86]
[1642180448365,24.1274,147.26,147.16,9.86]
[1642180448564,10.1909,147.23,147.16,20.0498]
[1642180448965,16.4409,147.23,147.16,20.0498]
[1642180449665,16.4409,147.23,147.16,20.2998]
[1642180450066,6.25,147.23,147.16,20.2998]
[1642180450268,0.25,147.23,147.16,20.2998]
[1642180450467,19.157,147.25,147.16,20.2998]
[1642180455070,19.157,147.25,147.16,20.0498]
[1642180456470,23.8956,147.24,147.16,20.0498]
[1642180456872,30.1456,147.24,147.16,20.2998]
[1642180457775,43.0529,147.24,147.16,20.0498]
[1642180458174,43.0529,147.24,147.16,9.86]
[1642180458374,48.3669,147.24,147.13,9.86]
[1642180459375,43.0529,147.24,147.13,9.86]
[1642180459975,43.0529,147.24,147.13,10.11]
[1642180460975,43.0529,147.24,147.13,9.86]
[1642180461376,43.0529,147.24,147.13,20.0524]
[1642180461977,43.0529,147.24,147.13,9.86]
[1642180464482,43.0529,147.24,147.13,20.0523]
[1642180464879,43.0529,147.24,147.13,9.86]
[1642180466980,53.23967588,147.24,147.13,9.86]
[1642180467180,53.23967588,147.24,147.1,9.86]
[1642180467981,120.82967588,147.24,147.1,9.86]
[1642180468281,53.23967588,147.24,147.1,9.86]
[1642180468486,44.75367588,147.24,147.1,10.11]
[1642180468780,10.1946,147.18,147.1,10.11]
[1642180468980,2.718,147.17,147.1,10.11]
[1642180469479,8.968,147.17,147.1,10.11]
[1642180469731,6.25,147.17,147.1,10.11]
[1642180470280,16.4451,147.17,147.1,10.11]
[1642180470882,6.25,147.17,147.1,10.11]
[1642180471083,0.25,147.17,147.1,10.11]
[1642180471481,8.968,147.2,147.1,10.11]
[1642180471883,2.718,147.2,147.1,9.86]
[1642180472081,8.718,147.2,147.1,9.86]
[1642180472282,2.718,147.2,147.1,9.86]
[1642180472486,10.1943,147.18,147.1,20.0545]
[1642180472881,2.718,147.17,147.1,20.0545]
[1642180473283,26.7145,147.17,147.1,20.0545]
[1642180474886,23.9965,147.17,147.1,20.0545]
[1642180476991,26.7145,147.17,147.1,20.0545]
[1642180478320,23.9965,147.17,147.1,20.0545]
[1642180479923,2.718,147.17,147.1,20.0545]
[1642180480123,2.718,147.17,147.1,21.74649488]
[1642180480326,10.4435,147.2,147.1,89.33649488]
[1642180480525,10.1935,147.2,147.1,89.33649488]
[1642180481823,10.4435,147.2,147.1,89.33649488]
[1642180482024,10.1935,147.2,147.1,89.33649488]
[1642180482923,27.0858,147.21,147.1,89.33649488]
[1642180483326,27.0858,147.21,147.1,113.55169488]
[1642180484125,37.2782,147.21,147.1,113.55169488]
[1642180487431,3.87260241,147.24,147.1,237.07169488]
[1642180487633,3.87260241,147.24,147.1,237.64013514]
[1642180488533,6.58960241,147.27,147.16,10.1899]
[1642180488734,3.87260241,147.27,147.16,20.0499]
[1642180488937,2.717,147.26,147.16,20.0499]
[1642180489335,22.9438,147.25,147.16,20.0499]
[1642180490738,2.717,147.24,147.16,20.0499]
[1642180493739,12.9077,147.24,147.16,20.0499]
[1642180495240,2.717,147.24,147.17,28.51982667]
[1642180495442,3.87260241,147.27,147.2,10.1875]
[1642180496041,3.87260241,147.27,147.2,17.1235]
[1642180496442,2.716,147.27,147.2,17.1235]
[1642180497342,12.9042,147.27,147.2,10.1875]
[1642180498145,12.9042,147.27,147.18,43.3343]
[1642180498346,22.8995,147.26,147.18,43.3343]
[1642180498946,12.9034,147.29,147.18,43.3343]
[1642180499147,22.8313,147.28,147.18,43.3343]
[1642180500149,33.0189,147.28,147.18,43.3343]
[1642180500751,2.716,147.27,147.18,43.3343]
[1642180500948,24.3376,147.26,147.18,43.3343]
[1642180502449,10.1882,147.27,147.18,43.3343]
[1642180502652,2.716,147.29,147.18,43.3343]
[1642180503578,23.1971,147.28,147.18,43.3343]
[1642180503876,12.9041,147.27,147.18,43.3343]
[1642180504680,23.8544,147.26,147.18,43.3343]
[1642180505382,12.9033,147.29,147.18,43.3343]
[1642180505680,3.87260241,147.3,147.18,51.50434761]
[1642180505876,3.87260241,147.29,147.18,51.50434761]
[1642180506077,3.87260241,147.29,147.2,27.97345717]
[1642180506277,3.87260241,147.29,147.24,10.1846]
[1642180506876,1.93387031,147.29,147.24,10.1846]
[1642180508480,1.93387031,147.29,147.24,20.0446]
[1642180508880,1.93387031,147.3,147.24,87.6346]
[1642180509278,3.87260241,147.33,147.26,46.0]
[1642180509480,3.87260241,147.33,147.28,24.91629957]
[1642180509680,3.87260241,147.33,147.3,10.1785]
[1642180509884,3.87260241,147.36,147.31,6.06439993]
[1642180510081,3.87260241,147.36,147.32,9.86]
[1642180510882,5.8088879,147.39,147.34,25.91319567]
[1642180511182,7.76740891,147.46,147.35,11.53804761]
[1642180511386,3.87246571,147.39,147.35,11.53804761]
[1642180511582,3.87246571,147.39,147.36,1.67804761]
[1642180511783,3.87246571,147.39,147.37,9.86]
[1642180511982,3.87246571,147.39,147.38,39.97119993]
[1642180512186,3.87246571,147.39,147.38,117.42119993]
[1642180512385,3.87246571,147.39,147.38,49.83119993]
[1642180512582,3.87246571,147.39,147.38,15.92439993]
[1642180512783,2.713,147.44,147.38,15.92439993]
[1642180513788,12.8896,147.44,147.38,15.92439993]
[1642180513984,10.1766,147.44,147.38,6.06439993]
[1642180514285,2.713,147.43,147.34,9.86]
[1642180515384,10.1786,147.41,147.34,9.86]
[1642180515685,2.714,147.4,147.34,9.86]
[1642180517286,2.714,147.4,147.24,123.26]
[1642180517287,12.8933,147.4,147.24,123.26]
[1642180517488,16.4293,147.4,147.25,9.86]
[1642180517685,2.715,147.39,147.25,9.86]
[1642180517985,2.715,147.39,147.26,29.53316131]
[1642180518187,2.715,147.39,147.27,9.86]
[1642180518685,10.1805,147.39,147.27,87.6321]
[1642180518887,2.714,147.38,147.27,87.6321]
[1642180520589,2.714,147.38,147.27,89.31014761]
[1642180520797,12.8941,147.41,147.27,89.31014761]
[1642180521587,2.715,147.41,147.27,89.31014761]
[1642180521787,25.3877,147.42,147.27,89.31014761]
[1642180521989,2.714,147.42,147.27,218.59769646]
[1642180522189,2.714,147.44,147.27,218.59769646]
[1642180522993,27.47472525,147.43,147.28,3.75705725]
[1642180523192,2.714,147.42,147.34,10.1778]
[1642180524292,23.6037,147.43,147.34,10.1778]
[1642180526295,2.714,147.44,147.34,10.1778]
[1642180526495,26.7986,147.45,147.39,10.1745]
[1642180526694,2.713,147.47,147.39,10.1745]
[1642180527094,39.03513061,147.48,147.39,10.1745]
[1642180527495,14.16303061,147.48,147.39,10.1745]
[1642180527796,3.86998398,147.47,147.39,10.1745]
[1642180529196,14.16303061,147.48,147.39,10.1745]
[1642180529996,14.16303061,147.48,147.4,9.86]
[1642180530199,14.16303061,147.48,147.42,10.1721]
[1642180530797,14.16303061,147.48,147.4,9.86]
[1642180530997,2.712,147.47,147.4,9.86]
[1642180532098,8.962,147.47,147.4,9.86]
[1642180532298,19.1365,147.47,147.4,9.86]
[1642180532698,3.87036261,147.46,147.4,9.86]
[1642180533099,10.12036261,147.46,147.4,9.86]
[1642180533298,20.29596261,147.46,147.4,9.86]
[1642180534200,3.87036261,147.45,147.4,9.86]
[1642180534600,10.12036261,147.45,147.4,9.86]